bitfinex-derivatives/quotes_SOLF0:USTF0_20241217
["timestamp","ask_amount","ask_price","bid_price","bid_amount"]
[1734446435025,2.274,219.86,219.81,2.2745]
[1734446435225,5.58177729,219.94,219.81,3.46]
[1734446435425,5.58177729,219.94,219.82,1.9511]
[1734446436322,19.24083417,219.95,219.82,1.9511]
[1734446436623,3.46,219.97,219.83,1.9542]
[1734446436818,2.2738,219.88,219.83,4.2285]
[1734446437025,19.24083417,219.95,219.83,1.9542]
[1734446437727,24.71275438,219.95,219.83,1.9542]
[1734446438223,19.24083417,219.91,219.82,1.9511]
[1734446438425,2.274,219.87,219.76,7.658]
[1734446438723,19.24083417,219.91,219.77,1.7913]
[1734446439025,2.2744,219.82,219.77,4.0662]
[1734446439417,19.24083417,219.91,219.77,1.7913]
[1734446439618,3.46,219.9,219.77,1.7913]
[1734446440025,3.46,219.9,219.77,4.0662]
[1734446440026,2.2744,219.82,219.77,4.0662]
[1734446440227,2.2744,219.82,219.77,1.7913]
[1734446440526,3.46,219.9,219.77,1.7913]
[1734446441227,2.2748,219.78,219.77,1.7913]
[1734446441427,19.24083417,219.87,219.76,3.46]
[1734446441622,2.2749,219.77,219.76,3.46]
[1734446442621,2.275,219.76,219.75,0.16339]
[1734446443226,19.24083417,220.11,219.75,0.16339]
[1734446443426,19.24083417,219.86,219.75,0.16339]
[1734446443633,22.70083417,219.86,219.75,0.16339]
[1734446443824,1.8875,219.85,219.7,5.51374468]
[1734446444027,2.2752,219.76,219.7,5.51374468]
[1734446444223,1.8875,219.85,219.7,7.78934468]
[1734446444425,1.8875,219.85,219.7,5.51374468]
[1734446445533,2.275,219.77,219.72,2.2755]
[1734446445834,2.275,219.77,219.7,5.51374468]
[1734446446034,2.2753,219.74,219.7,5.51374468]
[1734446446234,19.24083417,219.82,219.7,5.51374468]
[1734446446733,19.24083417,219.82,219.69,3.716]
[1734446447033,19.24083417,219.74,219.66,0.19676]
[1734446447530,19.24083417,219.69,219.54,56.54027457]
[1734446447730,2.2765,219.62,219.54,1.8896]
[1734446447930,19.24083417,219.65,219.57,5.38536561]
[1734446448124,2.2767,219.6,219.54,1.8896]
[1734446448933,12.05253426,219.62,219.49,17.62116971]
[1734446449231,12.05253426,219.65,219.52,1.8937]
[1734446449535,12.05253426,219.7,219.56,12.05253426]
[1734446449733,12.05253426,219.7,219.57,3.94]
[1734446449929,9.51538225,219.72,219.6,2.2767]
[1734446450126,9.51538225,219.72,219.61,3.7762]
[1734446450535,2.2758,219.69,219.61,3.7762]
[1734446450735,19.27370216,219.78,219.61,3.7762]
[1734446450930,3.94,219.76,219.62,1.8937]
[1734446451235,3.94,219.76,219.61,3.7762]
[1734446451431,19.27370216,219.72,219.61,3.7762]
[1734446451633,2.2757,219.7,219.63,2.2763]
[1734446452132,2.2754,219.73,219.66,2.2761]
[1734446452340,19.27370216,219.84,219.63,3.94]
[1734446452633,3.94,219.86,219.63,3.94]
[1734446452634,19.27370216,219.8,219.63,3.94]
[1734446453232,19.27370216,219.8,219.63,23.21370216]
[1734446453432,2.2752,219.75,219.68,2.2758]
[1734446453639,19.27370216,219.84,219.69,1.7758]
[1734446454234,19.27370216,219.8,219.69,1.7758]
[1734446454533,19.27370216,219.76,219.61,3.7762]
[1734446455236,2.276,219.68,219.61,3.7762]
[1734446455938,2.2759,219.68,219.61,3.7762]
[1734446456338,19.27370216,219.76,219.63,2.2764]
[1734446456537,2.2756,219.71,219.61,3.7762]
[1734446456734,19.27370216,219.76,219.61,3.7762]
[1734446456930,19.27370216,219.76,219.63,2.2764]
[1734446457137,2.2759,219.68,219.61,3.7762]
[1734446457335,19.27370216,219.76,219.61,3.7762]
[1734446457533,1.8244,219.75,219.61,3.7762]
[1734446457733,3.7184,219.75,219.61,3.7762]
[1734446458236,19.27370216,219.8,219.61,3.7762]
[1734446458535,3.94,219.79,219.61,3.7762]
[1734446458739,2.2753,219.74,219.64,2.2763]
[1734446458933,1.9631,219.85,219.63,19.27370216]
[1734446459132,19.27370216,219.84,219.63,19.27370216]
[1734446459335,19.27370216,219.84,219.61,3.7762]
[1734446459336,19.27370216,219.8,219.61,3.7762]
[1734446459532,1.9341,219.84,219.59,1.7758]
[1734446459533,19.27370216,219.72,219.59,1.7758]
[1734446459833,19.27370216,219.72,219.56,3.8273]
[1734446459834,3.94,219.71,219.56,3.8273]
[1734446460038,5.7417,219.71,219.56,3.8273]
[1734446460336,2.276,219.67,219.59,2.2768]
[1734446460537,5.7417,219.71,219.56,3.8273]
[1734446461039,19.27370216,219.68,219.54,1.7827]
[1734446461835,19.27370216,219.68,219.5,7.7453]
[1734446462237,2.277,219.57,219.5,3.8053]
[1734446462540,19.27370216,219.64,219.5,3.8053]
[1734446462733,19.27370216,219.64,219.5,6.083]
[1734446462734,2.2771,219.57,219.5,6.083]
[1734446462935,3.94,219.64,219.5,3.8053]
[1734446463136,5.57950214,219.69,219.53,19.27370216]
[1734446463338,2.2761,219.66,219.54,1.9356]
[1734446463636,1.8017,219.71,219.57,19.27370216]
[1734446463833,1.8017,219.71,219.58,3.94]
[1734446463834,7.38120214,219.71,219.58,3.94]
[1734446464840,7.38120214,219.71,219.59,2.2767]
[1734446465042,7.38120214,219.71,219.58,3.94]
[1734446465833,2.276,219.67,219.62,2.2765]
[1734446466238,23.21370216,219.76,219.58,3.94]
[1734446466239,19.27370216,219.76,219.58,3.94]
[1734446466439,2.2759,219.68,219.63,2.2763]
[1734446467241,5.33831366,219.72,219.58,3.94]
[1734446467940,2.2758,219.69,219.62,2.2765]
[1734446468136,5.33831366,219.72,219.62,2.2765]
[1734446468342,5.33831366,219.72,219.58,3.94]
[1734446468539,7.61381366,219.72,219.64,2.2763]
[1734446468741,3.7189,219.8,219.57,19.27370216]
[1734446468742,22.99260216,219.8,219.65,3.94]
[1734446468939,1.8643,219.8,219.66,25.11190216]
[1734446469139,1.8643,219.8,219.67,7.7469]
[1734446469340,1.8643,219.8,219.67,3.94]
[1734446470139,2.2749,219.78,219.72,2.2754]
[1734446470341,1.8643,219.8,219.66,19.27370216]
[1734446470541,21.13800216,219.8,219.67,3.94]
[1734446470742,19.27370216,219.76,219.57,6.28225273]
[1734446471049,1.8643,219.8,219.51,6.28225273]
[1734446471050,19.27370216,219.71,219.51,6.28225273]
[1734446471249,8.46195224,219.75,219.5,5.53538518]
[1734446471250,19.27370216,219.67,219.5,5.53538518]
[1734446471639,2.2766,219.61,219.54,2.2773]
[1734446471838,7.5138264,219.7,219.53,3.94]
[1734446472240,7.5138264,219.7,219.56,19.27370216]
[1734446472750,2.2759,219.68,219.6,2.2766]
[1734446472945,7.5138264,219.7,219.57,7.7257]
[1734446473247,2.2762,219.66,219.58,2.2768]
[1734446473442,7.5138264,219.7,219.57,7.7257]
[1734446473644,7.5138264,219.7,219.57,3.94]
[1734446473844,11.4538264,219.7,219.55,2.2771]
[1734446474045,19.27370216,219.67,219.5,3.94]
[1734446475350,7.5138264,219.7,219.5,29.49595489]
[1734446475550,7.5138264,219.7,219.5,23.21370216]
[1734446475751,7.5138264,219.7,219.5,29.49595489]
[1734446476049,7.5138264,219.7,219.51,28.52025527]
[1734446476351,7.5138264,219.7,219.51,6.28225273]
[1734446476654,2.2764,219.64,219.57,2.277]
[1734446476951,7.5138264,219.7,219.51,6.28225273]
[1734446477249,2.2762,219.65,219.59,2.2768]
[1734446477551,7.5138264,219.7,219.52,6.28225273]
[1734446477746,7.5138264,219.7,219.5,66.12324926]
[1734446477948,7.5138264,219.7,219.51,3.94]
[1734446478252,2.2766,219.61,219.56,2.2771]
[1734446478451,2.2766,219.61,219.51,3.94]
[1734446478951,2.2771,219.57,219.51,2.2776]
[1734446479150,19.27370216,219.67,219.51,2.2776]
[1734446479350,4.69319283,219.66,219.5,4.0]
[1734446479647,4.0,219.66,219.5,4.0]
[1734446480045,7.5138264,219.7,219.56,2.277]
[1734446480243,11.5138264,219.7,219.5,4.0]
[1734446480453,11.5138264,219.7,219.51,4.4490511]
[1734446480651,11.5138264,219.7,219.5,10.28225273]
[1734446480955,11.5138264,219.7,219.5,4.0]
[1734446481155,0.69310857,219.69,219.5,10.28225273]
[1734446481450,7.5138264,219.7,219.53,19.27370216]
[1734446481748,2.2763,219.64,219.59,2.2768]
[1734446481951,7.5138264,219.7,219.57,4.0]
[1734446482153,1.9485,219.7,219.57,23.27370216]
[1734446482647,2.276,219.67,219.61,2.2765]
[1734446482857,1.9485,219.7,219.58,3.7633]
[1734446483055,1.9485,219.7,219.57,4.0]
[1734446483249,23.27370216,219.69,219.52,28.95351092]
[1734446483450,19.27370216,219.65,219.51,4.0]
[1734446483646,4.0,219.69,219.51,4.0]
[1734446483647,3.7231,219.64,219.51,4.0]
[1734446484748,3.7231,219.64,219.49,24.72332802]
[1734446484947,2.2768,219.6,219.55,2.2772]
[1734446485145,3.7231,219.64,219.51,4.0]
[1734446485351,1.8824,219.64,219.51,4.0]
[1734446485649,2.2763,219.64,219.6,2.2767]
[1734446485854,7.52993478,219.7,219.58,4.0]
[1734446486449,1.9485,219.7,219.58,4.0]
[1734446486650,2.276,219.68,219.61,2.2765]
[1734446486854,1.9485,219.7,219.58,4.0]
[1734446487154,3.6807,219.75,219.58,4.0]
[1734446487845,2.2761,219.66,219.61,2.2766]
[1734446488158,3.6807,219.75,219.58,4.0]
[1734446488761,1.84,219.75,219.58,4.0]
[1734446488952,1.84,219.75,219.65,2.2762]
[1734446488953,2.2757,219.7,219.65,2.2762]
[1734446489251,1.84,219.75,219.65,6.2762]
[1734446489650,1.84,219.75,219.65,4.0]
[1734446489851,1.84,219.75,219.6,4.0]
[1734446490146,19.27370216,219.7,219.54,5.4038]
[1734446490352,2.2762,219.66,219.57,4.0]
[1734446490550,1.899,219.69,219.57,4.0]
[1734446490954,2.2765,219.62,219.57,6.277]
[1734446491156,19.27370216,219.66,219.5,1.8929]
[1734446491354,3.6877,219.65,219.48,3.36122441]
[1734446491853,19.27370216,219.62,219.48,3.36122441]
[1734446492152,2.2773,219.54,219.48,5.63922441]
[1734446492365,19.27370216,219.62,219.48,3.36122441]
[1734446493357,19.27370216,219.62,219.48,5.63912441]
[1734446493358,2.2773,219.55,219.48,5.63912441]
[1734446493555,2.2773,219.55,219.48,3.36122441]
[1734446493757,19.27370216,219.62,219.48,3.36122441]
[1734446493955,2.2771,219.56,219.5,2.2777]
[1734446494452,2.2769,219.59,219.53,2.2774]
[1734446494654,2.2769,219.59,219.48,3.36122441]
[1734446494858,2.2769,219.59,219.48,28.9171793]
[1734446495058,2.2769,219.59,219.49,4.44984939]
[1734446495259,2.2769,219.58,219.48,22.63492657]
[1734446495461,2.2769,219.58,219.49,4.44998815]
[1734446495656,2.2769,219.58,219.49,6.28225273]
[1734446495856,9.20352873,219.65,219.48,47.76393749]
[1734446496155,3.6877,219.65,219.49,10.73221414]
[1734446496357,3.6877,219.65,219.5,4.44996141]
[1734446496560,2.2765,219.62,219.53,2.2774]
[1734446496760,1.9113,219.65,219.54,4.0]
[1734446497157,2.2764,219.64,219.59,2.2768]
[1734446498051,2.2764,219.63,219.59,2.2768]
[1734446498956,19.27370216,219.74,219.54,4.0]
[1734446499258,2.59083047,219.73,219.55,12.68939299]
[1734446499556,0.69293047,219.72,219.55,1.9575]
[1734446499752,5.45628606,219.71,219.55,1.9575]
[1734446500660,19.27370216,219.7,219.53,30.97141092]
[1734446500856,19.96677247,219.7,219.53,5.8424]
[1734446501054,5.45628606,219.71,219.56,19.27370216]
[1734446501257,5.45628606,219.71,219.56,25.55595489]
[1734446501466,2.2762,219.65,219.56,25.55595489]
[1734446501861,2.2764,219.63,219.59,2.2768]
[1734446502155,5.45628606,219.71,219.6,4.0]
[1734446502752,2.2762,219.65,219.61,2.2766]
[1734446503564,5.45628606,219.71,219.6,4.0]
[1734446503960,2.2762,219.65,219.61,2.2765]
[1734446504359,5.45628606,219.71,219.6,4.0]
[1734446504659,5.45628606,219.71,219.59,3.78]
[1734446505259,5.45628606,219.71,219.61,19.27370216]
[1734446505763,19.27370216,219.82,219.62,6.38704676]
[1734446505963,0.69264814,219.81,219.63,47.40494249]
[1734446506165,0.69264814,219.81,219.69,2.2757]
[1734446506369,0.69264814,219.81,219.7,3.78]
[1734446506664,0.69264814,219.81,219.73,2.2753]
[1734446506862,19.27370216,219.86,219.72,3.78]
[1734446507159,0.69255948,219.85,219.75,2.2751]
[1734446507363,19.96626164,219.86,219.72,3.78]
[1734446507556,0.69247254,219.85,219.72,3.78]
[1734446507960,2.2744,219.82,219.73,1.8934]
[1734446508160,19.27370216,219.86,219.73,1.8934]
[1734446509062,19.27370216,219.82,219.67,7.4331]
[1734446509460,2.2751,219.76,219.71,2.2755]
[1734446510166,19.27370216,219.82,219.67,9.3265]
[1734446510765,2.2753,219.74,219.69,2.2757]
[1734446511067,19.27370216,219.82,219.67,7.5432]
[1734446511268,0.69263425,219.81,219.67,13.04403868]
[1734446511463,19.27370216,219.82,219.67,13.04403868]
[1734446511664,19.27370216,219.86,219.67,13.04403868]
[1734446511862,0.69252155,219.85,219.67,13.04403868]
[1734446512065,0.69252155,219.85,219.72,2.2754]
[1734446512468,0.69252155,219.85,219.67,13.04403868]
[1734446512669,2.2752,219.75,219.67,13.04403868]
[1734446512869,3.6829,219.84,219.67,13.04403868]
[1734446513069,3.6829,219.84,219.68,3.78]
[1734446513264,0.69253806,219.83,219.68,3.78]
[1734446513766,0.69253806,219.83,219.69,3.78]
[1734446514065,19.27370216,219.86,219.69,3.78]
[1734446514265,0.69246345,219.85,219.69,3.78]
[1734446514969,2.2746,219.81,219.71,2.2755]
[1734446515275,19.27370216,219.86,219.69,3.78]
[1734446515472,0.69255157,219.85,219.69,3.78]
[1734446515669,0.69255157,219.85,219.69,6.0557]
[1734446515866,19.27370216,219.82,219.67,9.26403868]
[1734446516067,19.27370216,219.77,219.63,3.78]
[1734446516277,19.27370216,219.73,219.58,3.78]
[1734446516775,3.6837,219.81,219.58,9.1445966]
[1734446516776,8.233,219.81,219.58,9.1445966]
[1734446516976,19.96651332,219.8,219.6,19.27370216]
[1734446517172,0.69281116,219.8,219.64,19.27370216]
[1734446517373,3.6837,219.81,219.65,7.5008]
[1734446517571,0.69262931,219.8,219.65,7.5008]
[1734446517777,3.6837,219.81,219.7,2.2757]
[1734446517778,2.2753,219.74,219.7,2.2757]
[1734446517981,2.2753,219.74,219.66,13.84878797]
[1734446518183,21.07132622,219.81,219.66,13.84878797]
[1734446518386,2.2753,219.74,219.69,2.2757]
[1734446519281,21.07132622,219.81,219.68,3.78]
[1734446519682,2.275,219.77,219.69,2.2758]
[1734446519885,21.07132622,219.81,219.69,2.2758]
[1734446520185,0.69263253,219.8,219.68,3.78]
[1734446520387,0.69263253,219.8,219.68,6.0559]
[1734446520585,0.69263253,219.8,219.68,3.78]
[1734446520784,12.03558797,219.78,219.66,4.0893]
[1734446521084,12.03558797,219.78,219.65,3.7208]
[1734446521085,12.03558797,219.75,219.65,3.56]
[1734446521483,1.9263,219.77,219.65,3.56]
[1734446522081,2.2755,219.73,219.69,2.2758]
[1734446522483,1.9263,219.77,219.65,3.56]
[1734446522689,2.2756,219.72,219.67,2.2759]
[1734446522992,1.9263,219.77,219.65,3.56]
[1734446523186,2.276,219.67,219.65,3.56]
[1734446523386,12.03558797,219.72,219.61,3.56]
[1734446523891,2.2761,219.66,219.61,5.8365]
[1734446524087,12.03558797,219.72,219.61,3.56]
[1734446524486,12.03558797,219.75,219.61,3.56]
[1734446524992,1.9263,219.77,219.61,3.56]
[1734446524993,12.03558797,219.72,219.61,3.56]
[1734446525493,1.9263,219.77,219.61,3.56]
[1734446525494,12.03558797,219.75,219.61,3.56]
[1734446525891,12.03558797,219.75,219.65,2.2761]
[1734446525892,2.2758,219.7,219.65,2.2761]
[1734446526192,12.03558797,219.75,219.61,3.56]
[1734446526384,2.2757,219.7,219.66,2.2761]
[1734446526588,2.2757,219.7,219.61,3.56]
[1734446526589,1.9263,219.77,219.63,12.03558797]
[1734446526885,1.9263,219.77,219.66,12.03558797]
[1734446527092,3.56,219.9,219.69,12.03558797]
[1734446527293,12.03558797,219.86,219.72,12.03558797]
[1734446527487,1.9303,219.88,219.73,3.56]
[1734446527688,0.69258864,219.87,219.75,12.03558797]
[1734446527885,2.96648864,219.87,219.81,2.2744]
[1734446528088,2.2739,219.87,219.8,3.56]
[1734446528288,1.8867,219.94,219.8,3.56]
[1734446528496,2.2736,219.91,219.83,2.2743]
[1734446528690,0.69239871,219.9,219.84,12.03558797]
[1734446528898,0.69239871,219.93,219.84,12.03558797]
[1734446529094,0.69239871,219.93,219.82,1.8457]
[1734446529095,0.69237842,219.92,219.88,2.2737]
[1734446529396,2.273,219.97,219.89,3.56]
[1734446529588,12.03558797,220.01,219.89,3.56]
[1734446529788,12.03558797,219.98,219.87,3.56]
[1734446529988,19.23153724,219.98,219.87,3.56]
[1734446530398,0.68671497,219.97,219.87,3.56]
[1734446530604,0.68670841,219.97,219.87,22.79153724]
[1734446530799,2.2731,219.95,219.87,22.79153724]
[1734446531098,24.76088476,220.06,219.87,22.79153724]
[1734446531300,24.76088476,220.06,219.88,3.56]
[1734446531501,1.37325909,220.05,219.88,3.56]
[1734446531700,2.2732,219.95,219.88,3.56]
[1734446531895,19.23153724,220.02,219.88,3.56]
[1734446532097,0.68665074,220.01,219.88,3.56]
[1734446532597,0.68665074,220.04,219.88,3.56]
[1734446532803,2.273,219.96,219.89,2.2737]
[1734446533004,0.68665074,220.03,219.88,3.56]
[1734446533206,24.76088476,220.06,219.88,3.56]
[1734446533505,24.76088476,220.06,219.85,3.56]
[1734446533506,19.23153724,219.98,219.85,3.56]
[1734446533898,2.46970404,219.97,219.85,3.56]
[1734446534201,0.68660404,219.96,219.85,3.56]
[1734446534705,2.274,219.87,219.85,3.56]
[1734446536598,1.7831,219.97,219.85,3.56]
[1734446536799,19.23153724,220.02,219.85,3.56]
[1734446537102,0.68679782,219.96,219.87,19.23153724]
[1734446537299,42.45310062,220.19,219.91,19.23153724]
[1734446537300,3.56,220.15,219.91,19.23153724]
[1734446537506,2.2726,220.01,219.94,2.2732]
[1734446537807,5.59041204,220.08,219.92,7.343]
[1734446538003,5.59041204,220.08,219.95,2.2733]
[1734446538203,5.59041204,220.08,219.92,7.343]
[1734446538403,5.59041204,220.08,219.95,2.2733]
[1734446538608,1.7873,220.1,219.95,19.23153724]
[1734446538811,19.23153724,220.15,219.96,1.8197]
[1734446539099,2.2722,220.07,220.0,2.2727]
[1734446539303,5.6172,220.18,220.01,3.56]
[1734446539304,0.68625887,220.14,220.01,3.56]
[1734446539501,5.6172,220.18,220.04,2.2723]
[1734446539502,1.7873,220.18,220.04,2.2723]
[1734446539702,1.7873,220.18,220.05,3.8367]
[1734446539908,19.23153724,220.26,220.07,19.23153724]
[1734446540108,21.01883724,220.26,220.08,3.56]
[1734446540400,2.271,220.18,220.08,3.56]
[1734446540603,5.4902032,220.23,220.12,2.2715]
[1734446540801,5.4902032,220.23,220.11,19.23153724]
[1734446540802,2.2708,220.2,220.11,19.23153724]
[1734446540998,5.4902032,220.23,220.11,19.23153724]
[1734446541197,5.4902032,220.23,220.15,2.2712]
[1734446541402,5.4902032,220.23,220.11,19.23153724]
[1734446541403,2.2706,220.22,220.16,3.56]
[1734446541601,1.7873,220.26,220.16,3.56]
[1734446541798,1.7873,220.26,220.13,2.2714]
[1734446541999,1.7873,220.26,220.14,3.56]
[1734446542296,1.7873,220.26,220.14,5.8313]
[1734446542503,2.2705,220.23,220.14,3.56]
[1734446542702,19.23153724,220.3,220.12,5.47765603]
[1734446542900,19.23153724,220.26,220.13,3.56]
[1734446543104,1.8608,220.25,220.09,1.7516]
[1734446543301,19.23153724,220.22,220.1,3.56]
[1734446543606,2.2717,220.11,220.1,3.56]
[1734446544507,2.2722,220.06,220.05,1.9578]
[1734446544698,2.2722,220.06,219.86,13.72904372]
[1734446544699,19.23153724,220.14,220.0,3.56]
[1734446544900,1.8214,220.13,220.0,3.56]
[1734446545204,19.23153724,220.1,219.99,3.56]
[1734446545508,19.23153724,220.1,219.91,5.5622]
[1734446545509,19.23153724,220.06,219.91,3.56]
[1734446545903,1.7895,220.09,219.91,3.56]
[1734446547409,2.2731,219.98,219.91,3.56]
[1734446547802,5.40883776,220.06,219.91,3.56]
[1734446548003,5.40883776,220.06,219.92,3.56]
[1734446548407,1.7895,220.09,219.92,3.56]
[1734446548612,19.23153724,220.14,219.93,19.23153724]
[1734446548811,19.23153724,220.14,219.97,19.23153724]
[1734446549202,19.23153724,220.14,219.98,2.2729]
[1734446549506,19.23153724,220.14,219.99,3.56]
[1734446549810,2.2723,220.05,219.99,3.56]
[1734446550104,19.23153724,220.14,219.99,3.56]
[1734446550405,19.23153724,220.1,219.93,1.8705]
[1734446550613,19.23153724,220.06,219.94,3.44]
[1734446550805,19.23153724,220.1,219.95,3.44]
[1734446551211,19.23153724,220.06,219.9,1.8323]
[1734446551408,19.23153724,220.02,219.82,1.8705]
[1734446551610,1.7871,220.01,219.83,3.44]
[1734446551804,2.2736,219.92,219.83,3.44]
[1734446552110,1.7871,220.01,219.85,19.23153724]
[1734446552509,2.2736,219.92,219.86,2.2742]
[1734446552704,1.7871,220.01,219.85,19.23153724]
[1734446553206,24.69788863,220.06,219.89,19.23153724]
[1734446553207,5.46635139,220.06,219.89,19.23153724]
[1734446553416,2.2726,220.02,219.96,2.2732]
[1734446553714,1.8818,220.1,219.97,3.44]
[1734446553910,1.8818,220.1,219.98,3.44]
[1734446554109,1.8818,220.1,219.99,3.44]
[1734446555011,19.23153724,220.15,219.99,3.44]
[1734446555212,3.6837,220.17,220.03,2.2725]
[1734446555213,2.2719,220.1,220.03,2.2725]
[1734446555407,1.8818,220.16,220.01,19.23153724]
[1734446555607,19.23153724,220.11,219.82,1.8705]
[1734446555811,19.23153724,220.11,219.88,19.23153724]
[1734446556211,19.23153724,220.11,219.92,19.23153724]
[1734446556409,19.23153724,220.11,219.93,3.44]
[1734446556817,19.23153724,220.11,219.97,2.2731]
[1734446557111,19.23153724,220.11,219.93,3.44]
[1734446557621,1.8818,220.16,219.96,19.23153724]
[1734446557622,19.23153724,220.15,219.96,19.23153724]
[1734446557913,19.23153724,220.15,219.99,2.2729]
[1734446558118,19.23153724,220.15,220.0,3.44]
[1734446558411,2.2719,220.09,220.03,2.2725]
[1734446558614,2.2719,220.09,220.0,3.44]
[1734446558615,1.8818,220.16,220.0,3.44]
[1734446558809,19.23153724,220.15,219.97,3.694]
[1734446559007,2.2725,220.03,220.01,3.44]
[1734446559917,2.2726,220.02,219.99,3.44]
[1734446560113,19.23153724,220.11,219.99,3.44]
[1734446560310,19.23153724,220.07,219.93,3.44]
[1734446560513,1.9134,220.06,219.92,27.99655131]
[1734446560712,4.5409,220.23,219.96,19.23153724]
[1734446560912,2.2718,220.1,220.04,2.2723]
[1734446561116,19.23153724,220.21,220.05,3.44]
[1734446561315,1.789,220.17,220.05,3.44]
[1734446561518,2.2723,220.06,220.04,3.44]
[1734446562616,21.02053724,220.17,220.04,3.44]
[1734446564012,2.2723,220.05,220.04,3.44]
[1734446564417,1.789,220.17,220.04,3.44]
[1734446565014,2.2723,220.06,220.04,3.44]
[1734446565214,19.23153724,220.13,219.98,3.44]
[1734446565417,5.3376,220.12,219.96,3.44]
[1734446565617,19.23153724,220.09,219.96,3.44]
[1734446566214,19.23153724,220.09,219.9,1.9326]
[1734446566426,19.23153724,220.02,219.85,3.44]
[1734446566628,19.23153724,220.02,219.84,19.23153724]
[1734446566629,1.8367,220.01,219.86,3.44]
[1734446567118,1.8367,220.01,219.82,5.5944]
[1734446567421,5.2767,220.01,219.83,3.44]
[1734446567821,0.68673025,220.0,219.83,3.44]
[1734446568719,0.68673025,220.0,219.83,5.7145]
[1734446569017,0.68673025,220.0,219.84,19.23153724]
[1734446569218,24.78372716,220.06,219.88,19.23153724]
[1734446569421,5.55218992,220.06,219.92,19.23153724]
[1734446569624,0.68667193,220.05,219.93,3.44]
[1734446570019,5.55218992,220.06,219.93,3.44]
[1734446570525,2.2724,220.04,219.98,2.273]
[1734446570826,1.7729,220.11,219.99,3.44]
[1734446571022,1.7729,220.11,219.99,5.7128]
[1734446571226,1.7729,220.11,219.99,3.44]
[1734446571923,3.44,220.15,219.99,3.44]
[1734446572124,1.7614,220.13,219.99,3.44]
[1734446572422,1.7614,220.13,220.0,2.2727]
[1734446573025,1.7614,220.13,220.03,2.2725]
[1734446573216,5.45687572,220.18,220.0,31.20261462]
[1734446573419,2.2718,220.1,220.0,31.20261462]
[1734446573716,5.45687572,220.18,220.04,31.20261462]
[1734446574129,31.20261462,220.23,220.04,31.20261462]
[1734446574319,5.47672077,220.19,220.05,1.7678]
[1734446574619,5.47672077,220.19,220.06,3.44]
[1734446575124,5.5721,220.24,220.08,31.20261462]
[1734446575427,2.2707,220.21,220.14,2.2713]
[1734446575628,1.901,220.3,220.15,3.44]
[1734446575921,0.6858353,220.29,220.15,5.7112]
[1734446576318,2.2705,220.22,220.15,5.7112]
[1734446576525,1.901,220.3,220.15,3.44]
[1734446576825,0.68568455,220.29,220.15,3.44]
[1734446577024,5.55634342,220.27,220.15,3.44]
[1734446577725,2.2709,220.19,220.15,3.44]
[1734446577924,5.55634342,220.27,220.15,3.44]
[1734446578124,2.2711,220.16,220.15,3.44]
[1734446579627,5.55634342,220.27,220.13,3.4]
[1734446580323,5.55634342,220.27,220.08,31.20261462]
[1734446580324,31.20261462,220.24,220.08,3.4]
[1734446580527,5.55634342,220.27,220.07,1.8795]
[1734446580528,0.68577337,220.26,220.07,1.8795]
[1734446580724,2.2717,220.11,220.07,1.8795]
[1734446581125,1.7605,220.21,220.07,1.8795]
[1734446581834,2.272,220.08,220.05,5.1678]
[1734446582031,31.20261462,220.18,220.05,3.4]
[1734446582330,2.2723,220.05,220.01,1.9253]
[1734446582521,31.20261462,220.18,220.02,3.4]
[1734446582522,1.8723,220.17,220.02,3.4]
[1734446582926,1.7605,220.21,220.04,31.20261462]
[1734446583228,0.6860431,220.2,220.08,31.20261462]
[1734446583420,2.2709,220.19,220.12,2.2715]
[1734446583624,5.55634342,220.27,220.12,31.20261462]
[1734446584229,5.55634342,220.27,220.13,1.7585]